[Event "Early-Titled-Tuesday-Blitz-May-14-2024"]
[Site "Chess.com"]
[Date "2024.05.14"]
[Round "4"]
[White "baki83"]
[Black "Pomegranate988"]
[Result "1-0"]
[WhiteElo "2945"]
[BlackElo "2642"]
[TimeControl "180+1"]
[EndTime "8:40:38 PDT"]
[Termination "baki83 won by checkmate"]

1. e4 {[%clk 0:03:00.9]} 1... c6 {[%clk 0:02:58.9]} 2. Nf3 {[%clk 0:03:00.7]}
2... d5 {[%clk 0:02:58.2]} 3. Nc3 {[%clk 0:03:01.3]} 3... g6 {[%clk 0:02:58]} 4.
d4 {[%clk 0:03:00.7]} 4... Bg7 {[%clk 0:02:57.6]} 5. h3 {[%clk 0:03:01.3]} 5...
Nh6 {[%clk 0:02:57.3]} 6. Bd3 {[%clk 0:02:59.7]} 6... O-O {[%clk 0:02:55.9]} 7.
O-O {[%clk 0:02:59.2]} 7... f6 {[%clk 0:02:55.5]} 8. Re1 {[%clk 0:02:48.7]} 8...
Nf7 {[%clk 0:02:55.4]} 9. e5 {[%clk 0:02:45.9]} 9... b6 {[%clk 0:02:46.5]} 10.
e6 {[%clk 0:02:39.9]} 10... Nd6 {[%clk 0:02:43.7]} 11. Qe2 {[%clk 0:02:38.9]}
11... a5 {[%clk 0:02:42.3]} 12. Bf4 {[%clk 0:02:36.7]} 12... Na6 {[%clk
0:02:41.2]} 13. a3 {[%clk 0:02:35]} 13... Nc7 {[%clk 0:02:40.9]} 14. Qd2 {[%clk
0:02:23.1]} 14... Nxe6 {[%clk 0:02:38.5]} 15. Bh6 {[%clk 0:02:23.2]} 15... Rf7
{[%clk 0:02:32.6]} 16. Re2 {[%clk 0:02:20.5]} 16... Nc7 {[%clk 0:02:24.8]} 17.
Rae1 {[%clk 0:02:19.1]} 17... e6 {[%clk 0:02:24.1]} 18. Bxg7 {[%clk 0:02:15.5]}
18... Kxg7 {[%clk 0:02:23.4]} 19. h4 {[%clk 0:02:15.8]} 19... c5 {[%clk
0:02:13.2]} 20. Re3 {[%clk 0:02:13]} 20... cxd4 {[%clk 0:01:53.5]} 21. Nxd4
{[%clk 0:02:13.9]} 21... e5 {[%clk 0:01:53.7]} 22. Nc6 {[%clk 0:01:24.7]} 22...
Qd7 {[%clk 0:01:49.6]} 23. Nxe5 {[%clk 0:01:24.5]} 23... fxe5 {[%clk 0:01:48.4]}
24. Rxe5 {[%clk 0:01:25.4]} 24... Nc4 {[%clk 0:01:38.8]} 25. Bxc4 {[%clk
0:01:13.9]} 25... dxc4 {[%clk 0:01:39.7]} 26. Qg5 {[%clk 0:01:14.1]} 26... Qg4
{[%clk 0:01:29.6]} 27. Ne4 {[%clk 0:01:03.2]} 27... h6 {[%clk 0:00:40.6]} 28.
Qe3 {[%clk 0:00:56.2]} 28... Qf4 {[%clk 0:00:20.2]} 29. Qd4 {[%clk 0:00:52.3]}
29... Kh7 {[%clk 0:00:18.4]} 30. g3 {[%clk 0:00:35]} 30... Qf3 {[%clk
0:00:14.7]} 31. Re3 {[%clk 0:00:35.5]} 31... Qg4 {[%clk 0:00:13.3]} 32. Nf6+
{[%clk 0:00:32.6]} 32... Rxf6 {[%clk 0:00:12.8]} 33. Re7+ {[%clk 0:00:33.2]}
33... Kg8 {[%clk 0:00:12.5]} 34. Qxf6 {[%clk 0:00:29.1]} 34... Ne6 {[%clk
0:00:08.4]} 35. Qf7+ {[%clk 0:00:28.2]} 35... Kh8 {[%clk 0:00:07.3]} 36. Qh7#
{[%clk 0:00:28.8]} 1-0

[Event "Early-Titled-Tuesday-Blitz-May-14-2024"]
[Site "Chess.com"]
[Date "2024.05.14"]
[Round "4"]
[White "frederiksvane"]
[Black "AradNazari"]
[Result "1-0"]
[WhiteElo "2979"]
[BlackElo "2808"]
[TimeControl "180+1"]
[EndTime "8:40:40 PDT"]
[Termination "frederiksvane won by checkmate"]

1. c4 {[%clk 0:03:00.9]} 1... c5 {[%clk 0:02:52.5]} 2. g3 {[%clk 0:03:00.5]}
2... g6 {[%clk 0:02:52]} 3. Bg2 {[%clk 0:03:00.9]} 3... Bg7 {[%clk 0:02:52.7]}
4. Nc3 {[%clk 0:03:01.4]} 4... e5 {[%clk 0:02:53.3]} 5. d3 {[%clk 0:02:58.3]}
5... Ne7 {[%clk 0:02:53.7]} 6. Nf3 {[%clk 0:02:56.3]} 6... O-O {[%clk
0:02:53.9]} 7. Bg5 {[%clk 0:02:55.5]} 7... Nbc6 {[%clk 0:02:52.6]} 8. O-O {[%clk
0:02:55.5]} 8... h6 {[%clk 0:02:52.1]} 9. Bxe7 {[%clk 0:02:48.7]} 9... Nxe7
{[%clk 0:02:44.5]} 10. Ne1 {[%clk 0:02:48.2]} 10... a6 {[%clk 0:02:39.1]} 11.
Rb1 {[%clk 0:02:45.3]} 11... d6 {[%clk 0:02:29.1]} 12. Nc2 {[%clk 0:02:42]}
12... Ra7 {[%clk 0:02:14.7]} 13. b4 {[%clk 0:02:40.3]} 13... b6 {[%clk
0:02:15.2]} 14. a4 {[%clk 0:02:36.1]} 14... Be6 {[%clk 0:01:58.2]} 15. Ne3
{[%clk 0:02:34]} 15... f5 {[%clk 0:01:37.1]} 16. Ned5 {[%clk 0:02:33.3]} 16...
Bxd5 {[%clk 0:01:32.5]} 17. Nxd5 {[%clk 0:02:32.9]} 17... Nxd5 {[%clk
0:01:31.9]} 18. Bxd5+ {[%clk 0:02:32.6]} 18... Kh7 {[%clk 0:01:32.6]} 19. Qb3
{[%clk 0:02:16]} 19... h5 {[%clk 0:01:10.7]} 20. bxc5 {[%clk 0:02:05.4]} 20...
bxc5 {[%clk 0:01:11]} 21. Qb6 {[%clk 0:02:06.1]} 21... Qe7 {[%clk 0:01:11.4]}
22. Bb7 {[%clk 0:02:03.2]} 22... Rxb7 {[%clk 0:00:57.3]} 23. Qxb7 {[%clk
0:02:04.1]} 23... Qf6 {[%clk 0:00:55.5]} 24. Qxa6 {[%clk 0:01:57]} 24... h4
{[%clk 0:00:56]} 25. Qc6 {[%clk 0:01:49.4]} 25... Kh6 {[%clk 0:00:49.7]} 26. a5
{[%clk 0:01:47.5]} 26... e4 {[%clk 0:00:46.3]} 27. dxe4 {[%clk 0:01:42.4]} 27...
f4 {[%clk 0:00:46.6]} 28. Qd5 {[%clk 0:01:20.9]} 28... fxg3 {[%clk 0:00:34.1]}
29. fxg3 {[%clk 0:01:16.2]} 29... Qc3 {[%clk 0:00:34.5]} 30. Rxf8 {[%clk
0:01:12.1]} 30... Bxf8 {[%clk 0:00:34.9]} 31. Rd1 {[%clk 0:00:53.6]} 31... Kh7
{[%clk 0:00:25.8]} 32. Qd3 {[%clk 0:00:42.7]} 32... Qxa5 {[%clk 0:00:24]} 33.
gxh4 {[%clk 0:00:43.3]} 33... Qa8 {[%clk 0:00:19]} 34. h5 {[%clk 0:00:42.2]}
34... Bg7 {[%clk 0:00:13.8]} 35. hxg6+ {[%clk 0:00:35.6]} 35... Kh8 {[%clk
0:00:11.5]} 36. Qxd6 {[%clk 0:00:32.2]} 36... Bd4+ {[%clk 0:00:10.5]} 37. Rxd4
{[%clk 0:00:32.3]} 37... cxd4 {[%clk 0:00:07]} 38. Qf6+ {[%clk 0:00:31.7]} 38...
Kg8 {[%clk 0:00:07.4]} 39. Qf7+ {[%clk 0:00:32.6]} 39... Kh8 {[%clk 0:00:07.6]}
40. Qh7# {[%clk 0:00:33.5]} 1-0

[Event "Early-Titled-Tuesday-Blitz-May-14-2024"]
[Site "Chess.com"]
[Date "2024.05.14"]
[Round "4"]
[White "SAInt_666"]
[Black "hikaruchija"]
[Result "1-0"]
[WhiteElo "2791"]
[BlackElo "2593"]
[TimeControl "180+1"]
[EndTime "8:40:43 PDT"]
[Termination "SAInt_666 won on time"]

1. e4 {[%clk 0:03:00.9]} 1... c5 {[%clk 0:02:58]} 2. Nf3 {[%clk 0:03:00]} 2...
e6 {[%clk 0:02:57.9]} 3. c3 {[%clk 0:02:59.7]} 3... Nf6 {[%clk 0:02:56.6]} 4. e5
{[%clk 0:02:58.7]} 4... Nd5 {[%clk 0:02:57]} 5. Bc4 {[%clk 0:02:59.4]} 5... d6
{[%clk 0:02:56.7]} 6. d4 {[%clk 0:02:59.3]} 6... cxd4 {[%clk 0:02:55.8]} 7. cxd4
{[%clk 0:03:00.2]} 7... Be7 {[%clk 0:02:55.1]} 8. O-O {[%clk 0:03:00.6]} 8...
Bd7 {[%clk 0:02:54.1]} 9. Qe2 {[%clk 0:02:52.2]} 9... Bc6 {[%clk 0:02:52.8]} 10.
Nc3 {[%clk 0:02:36.5]} 10... Nxc3 {[%clk 0:02:49.7]} 11. bxc3 {[%clk 0:02:37.4]}
11... O-O {[%clk 0:02:41.1]} 12. exd6 {[%clk 0:02:37.3]} 12... Bxd6 {[%clk
0:02:38.3]} 13. Ne5 {[%clk 0:02:37.8]} 13... Bxe5 {[%clk 0:02:32.6]} 14. Qxe5
{[%clk 0:02:38.7]} 14... Nd7 {[%clk 0:02:31.6]} 15. Qg3 {[%clk 0:02:39.2]} 15...
Rc8 {[%clk 0:02:29.1]} 16. Bd3 {[%clk 0:02:34.7]} 16... Re8 {[%clk 0:02:07.9]}
17. Bh6 {[%clk 0:02:19.8]} 17... g6 {[%clk 0:01:56.2]} 18. c4 {[%clk 0:02:18.2]}
18... Qf6 {[%clk 0:01:41.3]} 19. Be3 {[%clk 0:02:06.3]} 19... a6 {[%clk
0:01:38.6]} 20. a4 {[%clk 0:02:05.8]} 20... h5 {[%clk 0:01:29.2]} 21. h4 {[%clk
0:02:03.8]} 21... Nb6 {[%clk 0:01:24.3]} 22. a5 {[%clk 0:02:01.4]} 22... Na4
{[%clk 0:01:19.9]} 23. d5 {[%clk 0:01:41.2]} 23... exd5 {[%clk 0:01:13.5]} 24.
cxd5 {[%clk 0:01:42.1]} 24... Bd7 {[%clk 0:01:08.9]} 25. Rac1 {[%clk 0:01:34.6]}
25... Nc3 {[%clk 0:01:02.1]} 26. d6 {[%clk 0:01:34.7]} 26... Bf5 {[%clk
0:00:52.6]} 27. Bg5 {[%clk 0:01:18.5]} 27... Qd4 {[%clk 0:00:47.4]} 28. Rcd1
{[%clk 0:01:02.9]} 28... Nxd1 {[%clk 0:00:41.9]} 29. Bxf5 {[%clk 0:01:02.7]}
29... Rc3 {[%clk 0:00:36.8]} 30. d7 {[%clk 0:00:56.8]} 30... Rf8 {[%clk
0:00:29.1]} 31. Qf4 {[%clk 0:00:26.3]} 31... Qd5 {[%clk 0:00:03.3]} 32. Bf6
{[%clk 0:00:26.4]} 32... Rc4 {[%clk 0:00:02.4]} 33. Qh6 {[%clk 0:00:25]} 1-0

[Event "Early-Titled-Tuesday-Blitz-May-14-2024"]
[Site "Chess.com"]
[Date "2024.05.14"]
[Round "4"]
[White "Sosat98"]
[Black "kanzaww"]
[Result "1-0"]
[WhiteElo "2756"]
[BlackElo "2488"]
[TimeControl "180+1"]
[EndTime "8:40:44 PDT"]
[Termination "Sosat98 won on time"]

1. e4 {[%clk 0:03:00.9]} 1... e5 {[%clk 0:02:58.1]} 2. Nf3 {[%clk 0:02:57.4]}
2... Nc6 {[%clk 0:02:57.2]} 3. Bb5 {[%clk 0:02:58]} 3... a6 {[%clk 0:02:56.6]}
4. Ba4 {[%clk 0:02:58.2]} 4... Nf6 {[%clk 0:02:55.9]} 5. O-O {[%clk 0:02:56.4]}
5... Be7 {[%clk 0:02:53]} 6. d3 {[%clk 0:02:55.2]} 6... b5 {[%clk 0:02:51]} 7.
Bb3 {[%clk 0:02:55.4]} 7... O-O {[%clk 0:02:45.8]} 8. a4 {[%clk 0:02:54.6]} 8...
b4 {[%clk 0:02:43.2]} 9. a5 {[%clk 0:02:54.7]} 9... d6 {[%clk 0:02:35.9]} 10.
Nbd2 {[%clk 0:02:55.2]} 10... Rb8 {[%clk 0:02:34.3]} 11. h3 {[%clk 0:02:52.4]}
11... h6 {[%clk 0:02:33]} 12. Nc4 {[%clk 0:02:52.9]} 12... Bd7 {[%clk
0:02:31.5]} 13. Re1 {[%clk 0:02:52.9]} 13... Re8 {[%clk 0:02:32.2]} 14. Ba4
{[%clk 0:02:50.7]} 14... Bf8 {[%clk 0:02:32.2]} 15. c3 {[%clk 0:02:49.9]} 15...
Ne7 {[%clk 0:02:25.9]} 16. Bxd7 {[%clk 0:02:24]} 16... Qxd7 {[%clk 0:02:26.8]}
17. d4 {[%clk 0:02:20.1]} 17... Qc6 {[%clk 0:01:55.1]} 18. dxe5 {[%clk
0:02:12.3]} 18... Qxc4 {[%clk 0:01:53.6]} 19. exf6 {[%clk 0:02:12.1]} 19... Ng6
{[%clk 0:01:46.3]} 20. fxg7 {[%clk 0:01:13.6]} 20... Bxg7 {[%clk 0:01:45.3]} 21.
Nd2 {[%clk 0:01:12.4]} 21... Qc6 {[%clk 0:01:23.9]} 22. cxb4 {[%clk 0:01:08.5]}
22... Rxb4 {[%clk 0:01:22.8]} 23. Ra3 {[%clk 0:01:06.6]} 23... Bxb2 {[%clk
0:01:08]} 24. Bxb2 {[%clk 0:01:06.6]} 24... Rxb2 {[%clk 0:01:08.9]} 25. Rg3
{[%clk 0:00:59.4]} 25... Qb5 {[%clk 0:00:40.1]} 26. Nf3 {[%clk 0:00:49.4]} 26...
Kh7 {[%clk 0:00:31.1]} 27. Qc1 {[%clk 0:00:41.5]} 27... Rxe4 {[%clk 0:00:20.2]}
28. Qxc7 {[%clk 0:00:32.3]} 28... Rxe1+ {[%clk 0:00:20.2]} 29. Nxe1 {[%clk
0:00:33.2]} 29... Qf5 {[%clk 0:00:18.8]} 30. Rf3 {[%clk 0:00:32.6]} 30... Nf4
{[%clk 0:00:17.9]} 31. Nd3 {[%clk 0:00:29.6]} 31... Nxh3+ {[%clk 0:00:04.5]} 32.
Kh2 {[%clk 0:00:23.5]} 32... Nf4 {[%clk 0:00:01.6]} 33. Nxf4 {[%clk 0:00:18.2]}
1-0

[Event "Early-Titled-Tuesday-Blitz-May-14-2024"]
[Site "Chess.com"]
[Date "2024.05.14"]
[Round "4"]
[White "ValeriyGrinev"]
[Black "twitchTriniCupid"]
[Result "1-0"]
[WhiteElo "2603"]
[BlackElo "2418"]
[TimeControl "180+1"]
[EndTime "8:40:47 PDT"]
[Termination "ValeriyGrinev won by resignation"]

1. d4 {[%clk 0:03:00.9]} 1... Nf6 {[%clk 0:02:57]} 2. c4 {[%clk 0:02:45.5]} 2...
e6 {[%clk 0:02:57]} 3. Nf3 {[%clk 0:02:45.2]} 3... Bb4+ {[%clk 0:02:57.1]} 4.
Nbd2 {[%clk 0:02:44.7]} 4... d5 {[%clk 0:02:55.4]} 5. Qc2 {[%clk 0:02:44.3]}
5... O-O {[%clk 0:02:55.2]} 6. g3 {[%clk 0:02:44.4]} 6... Nc6 {[%clk 0:02:49.8]}
7. Bg2 {[%clk 0:02:44.3]} 7... Qe7 {[%clk 0:02:45.9]} 8. O-O {[%clk 0:02:43.4]}
8... Rd8 {[%clk 0:02:36.3]} 9. Rd1 {[%clk 0:02:39.7]} 9... a5 {[%clk 0:02:19.8]}
10. b3 {[%clk 0:02:33.2]} 10... Bxd2 {[%clk 0:02:10.5]} 11. Bxd2 {[%clk
0:02:27.7]} 11... Ne4 {[%clk 0:02:08.3]} 12. Bf4 {[%clk 0:02:26.4]} 12... Nb4
{[%clk 0:02:07.9]} 13. Qb2 {[%clk 0:02:25.9]} 13... c6 {[%clk 0:01:55.7]} 14. a3
{[%clk 0:02:24.8]} 14... Na6 {[%clk 0:01:55.3]} 15. Rac1 {[%clk 0:02:20.4]}
15... Bd7 {[%clk 0:01:52.1]} 16. Ne5 {[%clk 0:02:15.1]} 16... f6 {[%clk
0:01:43.3]} 17. Nd3 {[%clk 0:02:10.4]} 17... g5 {[%clk 0:01:35.5]} 18. Be3
{[%clk 0:02:10.3]} 18... Nd6 {[%clk 0:01:32.8]} 19. Nc5 {[%clk 0:02:01]} 19...
Nxc5 {[%clk 0:01:26.6]} 20. dxc5 {[%clk 0:02:01.9]} 20... Nf5 {[%clk 0:01:27]}
21. cxd5 {[%clk 0:01:57.6]} 21... Nxe3 {[%clk 0:01:24.5]} 22. fxe3 {[%clk
0:01:52.4]} 22... exd5 {[%clk 0:01:23.3]} 23. Qd4 {[%clk 0:01:52.1]} 23... Qe5
{[%clk 0:01:06.1]} 24. e4 {[%clk 0:01:49.1]} 24... Qxd4+ {[%clk 0:01:01.8]} 25.
Rxd4 {[%clk 0:01:50]} 25... Be6 {[%clk 0:00:43.4]} 26. exd5 {[%clk 0:01:49.4]}
26... Bxd5 {[%clk 0:00:43.2]} 27. Rcd1 {[%clk 0:01:32.7]} 27... Re8 {[%clk
0:00:39.8]} 28. Bxd5+ {[%clk 0:01:32.2]} 28... cxd5 {[%clk 0:00:40]} 29. Kf2
{[%clk 0:01:32.3]} 29... Rac8 {[%clk 0:00:21.5]} 30. Rxd5 {[%clk 0:01:31.8]}
30... Rc7 {[%clk 0:00:16.9]} 31. b4 {[%clk 0:01:30.3]} 31... axb4 {[%clk
0:00:16.8]} 32. axb4 {[%clk 0:01:31.2]} 32... Ree7 {[%clk 0:00:17]} 33. Rd8+
{[%clk 0:01:28.9]} 33... Kf7 {[%clk 0:00:17.2]} 34. R1d6 {[%clk 0:01:28.9]}
34... Re6 {[%clk 0:00:14.8]} 35. R8d7+ {[%clk 0:01:28]} 35... Re7 {[%clk
0:00:14.9]} 36. Rd8 {[%clk 0:01:24.3]} 36... Re6 {[%clk 0:00:14.8]} 37. R6d7+
{[%clk 0:01:18.2]} 37... Re7 {[%clk 0:00:13.7]} 38. Rxc7 {[%clk 0:01:18.6]}
38... Rxc7 {[%clk 0:00:13.9]} 39. Ke3 {[%clk 0:01:16.4]} 39... Re7+ {[%clk
0:00:13.7]} 40. Kd3 {[%clk 0:01:15.8]} 40... Ke6 {[%clk 0:00:14.1]} 41. e4
{[%clk 0:01:09.4]} 41... Rc7 {[%clk 0:00:09.2]} 42. Kd4 {[%clk 0:01:08.4]} 42...
Re7 {[%clk 0:00:08.8]} 43. Rd6+ {[%clk 0:01:06.8]} 43... Kf7 {[%clk 0:00:09.2]}
44. b5 {[%clk 0:01:06.6]} 44... h5 {[%clk 0:00:08.9]} 45. c6 {[%clk 0:01:04.6]}
45... bxc6 {[%clk 0:00:09.8]} 46. bxc6 {[%clk 0:01:05.3]} 46... h4 {[%clk
0:00:10.1]} 47. gxh4 {[%clk 0:00:58.5]} 47... gxh4 {[%clk 0:00:10.4]} 48. Kc5
{[%clk 0:00:53.4]} 48... Re5+ {[%clk 0:00:10.3]} 49. Kb6 {[%clk 0:00:52]} 49...
Rxe4 {[%clk 0:00:10.3]} 50. c7 {[%clk 0:00:52.4]} 50... Rc4 {[%clk 0:00:10.3]}
51. Rc6 {[%clk 0:00:52.7]} 51... Rb4+ {[%clk 0:00:10.3]} 52. Kc5 {[%clk
0:00:53]} 1-0

[Event "Early-Titled-Tuesday-Blitz-May-14-2024"]
[Site "Chess.com"]
[Date "2024.05.14"]
[Round "4"]
[White "patzer-reloaded"]
[Black "sergeikim"]
[Result "1/2-1/2"]
[WhiteElo "2399"]
[BlackElo "2635"]
[TimeControl "180+1"]
[EndTime "8:40:47 PDT"]
[Termination "Game drawn by repetition"]

1. d3 {[%clk 0:03:00.9]} 1... Nf6 {[%clk 0:02:59.4]} 2. Nf3 {[%clk 0:02:59.5]}
2... g6 {[%clk 0:02:59.7]} 3. g3 {[%clk 0:03:00.2]} 3... Bg7 {[%clk 0:03:00]} 4.
Bg2 {[%clk 0:03:00.9]} 4... O-O {[%clk 0:03:00.2]} 5. O-O {[%clk 0:03:01.8]}
5... d5 {[%clk 0:03:00.3]} 6. c4 {[%clk 0:03:02.7]} 6... c6 {[%clk 0:02:58.9]}
7. cxd5 {[%clk 0:03:02.5]} 7... Nxd5 {[%clk 0:02:58.5]} 8. Nc3 {[%clk
0:02:57.4]} 8... Nxc3 {[%clk 0:02:57.3]} 9. bxc3 {[%clk 0:02:58.3]} 9... Bxc3
{[%clk 0:02:57.2]} 10. Rb1 {[%clk 0:02:58.8]} 10... Bg7 {[%clk 0:02:57.4]} 11.
h4 {[%clk 0:02:57.3]} 11... Nd7 {[%clk 0:02:52]} 12. h5 {[%clk 0:02:57]} 12...
Nf6 {[%clk 0:02:50.2]} 13. h6 {[%clk 0:02:55.7]} 13... Bh8 {[%clk 0:02:50]} 14.
Bb2 {[%clk 0:02:52.8]} 14... Be6 {[%clk 0:02:46.5]} 15. Bxf6 {[%clk 0:02:32.9]}
15... Bxf6 {[%clk 0:02:45.7]} 16. Rxb7 {[%clk 0:02:33.4]} 16... Bxa2 {[%clk
0:02:44.3]} 17. Qa4 {[%clk 0:02:32.8]} 17... Bd5 {[%clk 0:02:41.2]} 18. Rxa7
{[%clk 0:02:32.1]} 18... Rxa7 {[%clk 0:02:38.6]} 19. Qxa7 {[%clk 0:02:31.2]}
19... Qa8 {[%clk 0:02:33.8]} 20. Qxa8 {[%clk 0:02:19.9]} 20... Rxa8 {[%clk
0:02:33.1]} 21. e4 {[%clk 0:02:13.5]} 21... Be6 {[%clk 0:02:30.1]} 22. e5 {[%clk
0:02:09.4]} 22... Bh8 {[%clk 0:02:27.1]} 23. d4 {[%clk 0:02:09.5]} 23... f6
{[%clk 0:02:24.1]} 24. exf6 {[%clk 0:02:00.5]} 24... Bxf6 {[%clk 0:02:19.6]} 25.
Ne5 {[%clk 0:01:58.3]} 25... Bxe5 {[%clk 0:02:15.9]} 26. dxe5 {[%clk 0:01:56.1]}
26... Rc8 {[%clk 0:02:15.4]} 27. Rc1 {[%clk 0:01:49.8]} 27... c5 {[%clk
0:02:14.9]} 28. f4 {[%clk 0:01:49.1]} 28... Kf7 {[%clk 0:02:10.6]} 29. Kf2
{[%clk 0:01:48.1]} 29... c4 {[%clk 0:02:02]} 30. Rc3 {[%clk 0:01:46.1]} 30...
Rb8 {[%clk 0:02:00.9]} 31. Ke3 {[%clk 0:01:33]} 31... Rb1 {[%clk 0:01:52.4]} 32.
Kd4 {[%clk 0:01:16.4]} 32... Rd1+ {[%clk 0:01:45.4]} 33. Kc5 {[%clk 0:01:14.2]}
33... Rd3 {[%clk 0:01:22.3]} 34. Kb4 {[%clk 0:00:58.5]} 34... Rd2 {[%clk
0:01:20.2]} 35. Bf1 {[%clk 0:00:48.2]} 35... Rh2 {[%clk 0:01:16.9]} 36. Bxc4
{[%clk 0:00:45.7]} 36... Rxh6 {[%clk 0:01:16.7]} 37. Kc5 {[%clk 0:00:44.1]}
37... Rh3 {[%clk 0:01:14.4]} 38. Bxe6+ {[%clk 0:00:34.7]} 38... Kxe6 {[%clk
0:01:14.2]} 39. Kd4 {[%clk 0:00:35.4]} 39... h5 {[%clk 0:01:09.2]} 40. Ke4
{[%clk 0:00:27.5]} 40... Kf7 {[%clk 0:01:05.6]} 41. f5 {[%clk 0:00:20.2]} 41...
gxf5+ {[%clk 0:00:52.9]} 42. Kxf5 {[%clk 0:00:21.1]} 42... h4 {[%clk 0:00:52.5]}
43. Kg4 {[%clk 0:00:20.5]} 43... Rxg3+ {[%clk 0:00:52.5]} 44. Rxg3 {[%clk
0:00:20.6]} 44... hxg3 {[%clk 0:00:53.2]} 45. Kxg3 {[%clk 0:00:21.5]} 45... Kg6
{[%clk 0:00:41]} 46. Kf4 {[%clk 0:00:20.2]} 46... e6 {[%clk 0:00:38.6]} 47. Kg4
{[%clk 0:00:20.2]} 47... Kh6 {[%clk 0:00:38.8]} 48. Kh4 {[%clk 0:00:20.5]} 48...
Kg6 {[%clk 0:00:38.7]} 49. Kg4 {[%clk 0:00:20.8]} 49... Kh6 {[%clk 0:00:39.1]}
50. Kh4 {[%clk 0:00:20.8]} 50... Kg6 {[%clk 0:00:39.3]} 51. Kg4 {[%clk
0:00:21.1]} 1/2-1/2

[Event "Early-Titled-Tuesday-Blitz-May-14-2024"]
[Site "Chess.com"]
[Date "2024.05.14"]
[Round "4"]
[White "GeorgiosSouleidis"]
[Black "betta2004"]
[Result "0-1"]
[WhiteElo "2674"]
[BlackElo "2524"]
[TimeControl "180+1"]
[EndTime "8:40:49 PDT"]
[Termination "betta2004 won by resignation"]

1. e4 {[%clk 0:03:00.9]} 1... c5 {[%clk 0:02:46.8]} 2. Be2 {[%clk 0:02:59.8]}
2... g6 {[%clk 0:02:45.9]} 3. d3 {[%clk 0:03:00]} 3... Bg7 {[%clk 0:02:46.6]} 4.
f4 {[%clk 0:03:00.5]} 4... Nc6 {[%clk 0:02:47.1]} 5. Nf3 {[%clk 0:03:01]} 5...
d6 {[%clk 0:02:47.3]} 6. O-O {[%clk 0:03:01.2]} 6... Nf6 {[%clk 0:02:47.1]} 7.
c3 {[%clk 0:03:01.6]} 7... O-O {[%clk 0:02:47.7]} 8. Kh1 {[%clk 0:03:01.4]} 8...
e5 {[%clk 0:02:46.5]} 9. fxe5 {[%clk 0:03:00.1]} 9... dxe5 {[%clk 0:02:45.5]}
10. Be3 {[%clk 0:03:00.2]} 10... b6 {[%clk 0:02:45.1]} 11. a3 {[%clk 0:02:49.4]}
11... Nh5 {[%clk 0:02:43.6]} 12. b4 {[%clk 0:02:24.6]} 12... Qe7 {[%clk
0:02:29.1]} 13. bxc5 {[%clk 0:02:21.2]} 13... bxc5 {[%clk 0:02:30]} 14. c4
{[%clk 0:02:20.4]} 14... Nd4 {[%clk 0:02:23.7]} 15. Nc3 {[%clk 0:02:15.1]} 15...
Be6 {[%clk 0:02:21.7]} 16. g3 {[%clk 0:01:42]} 16... Rab8 {[%clk 0:01:55.4]} 17.
Ng5 {[%clk 0:01:28.4]} 17... Nf6 {[%clk 0:01:49.5]} 18. Nd5 {[%clk 0:01:14.2]}
18... Nxd5 {[%clk 0:01:42.9]} 19. cxd5 {[%clk 0:01:14.7]} 19... Bd7 {[%clk
0:01:39.2]} 20. Nf3 {[%clk 0:00:58.9]} 20... Rb2 {[%clk 0:01:38]} 21. Bxd4
{[%clk 0:00:50.4]} 21... cxd4 {[%clk 0:01:38.9]} 22. Nd2 {[%clk 0:00:49]} 22...
Rfb8 {[%clk 0:01:29.7]} 23. Nc4 {[%clk 0:00:48]} 23... R2b3 {[%clk 0:01:25.7]}
24. Qd2 {[%clk 0:00:36.8]} 24... Rc3 {[%clk 0:01:12.5]} 25. Rfb1 {[%clk
0:00:31.9]} 25... Rb5 {[%clk 0:01:06.2]} 26. Rxb5 {[%clk 0:00:22.6]} 26... Bxb5
{[%clk 0:01:07.1]} 27. Rb1 {[%clk 0:00:14.7]} 27... Bxc4 {[%clk 0:01:00.1]} 28.
Rb8+ {[%clk 0:00:14.9]} 28... Bf8 {[%clk 0:01:00.4]} 29. dxc4 {[%clk 0:00:15.3]}
29... Kg7 {[%clk 0:00:54.9]} 30. a4 {[%clk 0:00:13.5]} 30... Qa3 {[%clk
0:00:54.3]} 31. Kg2 {[%clk 0:00:06.3]} 31... Bc5 {[%clk 0:00:51.5]} 32. Qg5
{[%clk 0:00:04.4]} 32... Bd6 {[%clk 0:00:41.9]} 33. Qd8 {[%clk 0:00:04.1]} 33...
Rc2 {[%clk 0:00:31.8]} 34. Qg8+ {[%clk 0:00:02.9]} 34... Kh6 {[%clk 0:00:31.8]}
35. Qxf7 {[%clk 0:00:03.4]} 35... Rxe2+ {[%clk 0:00:30.9]} 36. Kh3 {[%clk
0:00:04.3]} 36... Bxb8 {[%clk 0:00:23.2]} 37. Qf8+ {[%clk 0:00:02.9]} 37... Qxf8
{[%clk 0:00:22.8]} 0-1